bitfinex-derivatives/quotes_ETHF0:USTF0_20250115
["timestamp","ask_amount","ask_price","bid_price","bid_amount"]
[1736934755998,3.51634957,3200.7,3200.5,0.31255]
[1736934756199,0.31254,3200.7,3200.3,0.31257]
[1736934756398,0.31254,3200.7,3200.2,40.8]
[1736934756798,0.31254,3200.7,3200.4,0.31256]
[1736934757001,0.31254,3200.7,3200.2,40.8]
[1736934757201,3.2078,3201.0,3200.2,40.8]
[1736934757399,0.31254,3200.7,3200.2,40.8]
[1736934757704,0.31254,3200.7,3200.5,0.31255]
[1736934758599,0.31254,3200.7,3200.2,40.8]
[1736934758904,3.46654259,3200.6,3200.2,40.8]
[1736934759103,0.31257,3200.3,3200.2,40.8]
[1736934760298,2.99243351,3200.8,3200.1,3.2078]
[1736934760501,0.31257,3200.4,3200.1,3.52039]
[1736934760801,0.31257,3200.4,3200.1,44.32039]
[1736934761104,0.31258,3200.3,3200.1,44.32039]
[1736934761406,0.31257,3200.4,3200.1,44.32039]
[1736934761598,0.31258,3200.3,3200.1,44.0078]
[1736934761997,0.31258,3200.3,3200.1,40.8]
[1736934762699,0.31257,3200.4,3200.1,41.11259]
[1736934762899,0.31258,3200.3,3200.1,41.11259]
[1736934764002,0.31257,3200.4,3200.1,41.11259]
[1736934764703,4.32416031,3200.5,3200.1,41.11259]
[1736934765009,0.31258,3200.3,3200.1,41.11259]
[1736934765201,0.31258,3200.3,3200.1,40.8]
[1736934765402,0.31258,3200.3,3200.1,41.11259]
[1736934765603,0.31257,3200.4,3200.1,41.11259]
[1736934766106,0.31258,3200.3,3200.1,41.11259]
[1736934768110,4.32416031,3200.5,3200.1,40.8]
[1736934768309,0.31258,3200.2,3200.1,40.8]
[1736934768709,0.31258,3200.3,3200.1,40.8]
[1736934769110,0.31258,3200.3,3200.1,41.11259]
[1736934769312,0.31262,3199.9,3199.7,3.2078]
[1736934769505,0.31262,3199.8,3199.7,3.2078]
[1736934769807,0.31262,3199.9,3199.7,3.2078]
[1736934770014,0.31262,3199.8,3199.7,3.2078]
[1736934770208,0.31262,3199.9,3199.7,3.52043]
[1736934770406,0.31262,3199.8,3199.7,3.2078]
[1736934770608,3.88827528,3199.8,3199.7,3.2078]
[1736934770809,3.57565528,3199.8,3199.7,3.2078]
[1736934771009,3.57565528,3199.8,3199.7,3.52043]
[1736934771207,6.78345528,3199.8,3199.2,41.7669]
[1736934771416,0.31267,3199.3,3199.2,0.9669]
[1736934771815,0.31268,3199.2,3199.1,0.4958]
[1736934772516,3.62487328,3199.3,3199.1,0.80849]
[1736934772818,3.52043,3199.8,3199.6,0.31264]
[1736934773018,3.2078,3199.8,3199.2,3.2078]
[1736934773218,3.25805693,3199.7,3199.6,0.31264]
[1736934773515,3.2078,3199.8,3199.7,0.31263]
[1736934773909,3.52043,3199.8,3199.6,0.31264]
[1736934774117,3.2078,3200.2,3199.2,3.2078]
[1736934774413,3.2078,3199.7,3199.2,3.2078]
[1736934774605,3.52044,3199.7,3199.4,0.31266]
[1736934774809,3.52044,3199.7,3199.5,0.31265]
[1736934775217,3.2078,3199.7,3199.6,0.31264]
[1736934775413,3.2078,3199.7,3199.2,3.2078]
[1736934775618,3.2078,3199.7,3199.6,0.31264]
[1736934775809,3.52044,3199.7,3199.5,0.31265]
[1736934776216,0.31265,3199.6,3199.3,0.31266]
[1736934776520,0.31264,3199.6,3199.5,0.31265]
[1736934776718,0.31264,3199.6,3199.4,0.31266]
[1736934777420,3.2078,3199.7,3199.1,0.4958]
[1736934777714,0.31266,3199.5,3199.3,0.31267]
[1736934777916,3.2078,3199.7,3199.1,0.4958]
[1736934778316,0.31267,3199.4,3199.2,0.31268]
[1736934778818,0.31266,3199.5,3199.3,0.31267]
[1736934780012,3.2078,3199.7,3199.3,0.31267]
[1736934780318,3.2078,3199.7,3199.1,0.4958]
[1736934780519,0.3126,3200.0,3199.8,0.31262]
[1736934780722,0.31261,3199.9,3199.7,0.31263]
[1736934780914,3.78922986,3199.9,3199.7,0.31263]
[1736934781113,0.31261,3199.9,3199.7,0.31263]
[1736934781713,0.31261,3200.0,3199.7,0.31263]
[1736934782117,3.5204,3200.1,3199.9,0.31261]
[1736934782316,3.2078,3200.1,3199.4,0.9438]
[1736934782512,1.0,3200.5,3200.0,0.3126]
[1736934782714,0.2438,3200.5,3200.4,3.52037]
[1736934783320,5.98511998,3201.1,3201.0,0.31251]
[1736934784124,2.99243351,3201.2,3200.4,44.0078]
[1736934784325,0.31252,3200.9,3200.4,44.0078]
[1736934784632,6.29027547,3201.2,3200.4,44.0078]
[1736934785227,3.2078,3201.5,3200.9,3.2078]
[1736934785427,3.52026,3201.5,3201.2,0.31248]
[1736934785630,3.54713539,3201.4,3201.3,0.31247]
[1736934785827,3.85960539,3201.4,3201.0,0.4539]
[1736934786026,3.54713539,3201.4,3201.2,0.31249]
[1736934786730,3.54713539,3201.4,3201.1,0.3125]
[1736934787434,3.54713539,3201.4,3201.0,0.9104]
[1736934787623,0.31248,3201.3,3201.0,1.22291]
[1736934787828,3.54713539,3201.4,3201.2,0.31249]
[1736934788223,3.85960539,3201.4,3201.1,0.31249]
[1736934788839,3.54713539,3201.4,3201.3,0.31248]
[1736934789533,3.54713539,3201.4,3201.0,0.9104]
[1736934790236,3.2078,3201.5,3201.0,0.9104]
[1736934790438,3.2078,3201.5,3201.4,0.31247]
[1736934790634,9.65691998,3201.9,3201.0,1.69166]
[1736934790829,9.65691998,3201.9,3201.0,0.9104]
[1736934791230,6.54273901,3201.8,3201.3,0.31247]
[1736934791436,3.2078,3201.4,3201.3,0.31247]
[1736934791834,3.2078,3201.4,3201.0,0.9104]
[1736934792140,2.78849668,3201.7,3201.0,0.9104]
[1736934792330,2.47604668,3201.7,3201.0,0.9104]
[1736934792531,0.31248,3201.4,3201.1,0.31249]
[1736934792730,0.31248,3201.4,3201.0,0.9104]
[1736934792731,0.31249,3201.2,3201.0,0.4539]
[1736934792928,5.68384668,3201.1,3200.5,3.6764]
[1736934793127,5.68384668,3201.1,3200.5,3.2078]
[1736934793128,2.47604668,3200.8,3200.5,3.2078]
[1736934793527,0.32636111,3200.7,3200.5,3.2078]
[1736934793841,0.32636111,3200.7,3200.5,3.52036]
[1736934794140,0.32636111,3200.7,3200.5,3.2078]
[1736934795230,0.01382111,3200.7,3200.5,3.2078]
[1736934795441,6.21120748,3200.6,3199.9,0.4686]
[1736934795634,0.31256,3200.5,3199.9,0.4686]
[1736934795832,6.21120748,3200.6,3200.2,0.31258]
[1736934796136,6.21120748,3200.6,3200.3,0.31257]
[1736934796137,3.36296852,3200.5,3200.3,0.31257]
[1736934797037,3.36296852,3200.5,3200.4,0.31257]
[1736934797637,6.52371748,3201.0,3200.2,3.2078]
[1736934797846,3.2078,3201.0,3200.8,0.31252]
[1736934798135,0.4993,3201.1,3200.9,0.31251]
[1736934798342,0.4993,3201.1,3200.3,0.4772]
[1736934798542,0.31251,3201.0,3200.7,0.31253]
[1736934799142,0.8118,3201.1,3200.8,0.31252]
[1736934799338,0.4993,3201.1,3200.3,0.4772]
[1736934799642,0.4993,3201.1,3200.9,0.31251]
[1736934800442,0.4993,3201.1,3201.0,0.31251]
[1736934800845,0.31248,3201.3,3201.0,0.31251]
[1736934801138,3.2078,3201.4,3200.7,3.2078]
[1736934801341,3.2078,3201.4,3201.3,0.31248]
[1736934801544,3.2078,3201.4,3201.2,0.31248]
[1736934801736,3.2078,3201.4,3200.8,40.8]
[1736934802035,3.2078,3201.4,3201.3,0.31248]
[1736934803239,0.81335,3201.6,3201.3,0.31248]
[1736934803545,0.5009,3201.6,3201.5,0.31246]
[1736934803839,0.5009,3201.6,3200.9,0.7813]
[1736934803840,3.2078,3201.8,3201.6,0.31244]
[1736934804045,3.52023,3201.8,3201.5,0.31245]
[1736934804445,0.31244,3201.7,3201.4,0.31246]
[1736934806050,3.52023,3201.8,3201.5,0.31245]
[1736934806251,3.2078,3201.8,3201.6,0.31245]
[1736934806548,3.25032346,3201.7,3201.3,2.3291]
[1736934806752,5.98963976,3202.4,3202.3,0.31238]
[1736934806940,5.98963976,3202.4,3202.3,3.52018]
[1736934807145,5.98963976,3202.4,3202.3,6.52358748]
[1736934807453,5.98963976,3202.4,3202.3,44.32018]
[1736934807957,2.44563976,3202.4,3202.3,52.32358748]
[1736934808250,0.31226,3203.6,3203.2,0.31228]
[1736934808448,0.9725,3203.7,3203.3,0.31228]
[1736934808851,0.4969,3203.7,3203.5,0.31225]
[1736934809243,0.4969,3203.7,3203.3,3.2078]
[1736934809442,0.4969,3203.7,3203.6,0.31225]
[1736934809759,3.2078,3204.1,3203.3,3.2078]
[1736934810148,3.2078,3204.1,3203.9,0.31222]
[1736934810347,1.26229,3204.3,3203.9,0.31222]
[1736934810554,1.26229,3204.3,3203.8,3.52003]
[1736934810749,3.48362602,3204.2,3203.9,0.31222]
[1736934810950,3.79582602,3204.2,3203.8,3.52003]
[1736934811155,3.48362602,3204.2,3203.9,0.31222]
[1736934811652,0.9501,3204.3,3203.9,0.31222]
[1736934811849,0.9501,3204.3,3203.8,3.2078]
[1736934812049,0.4745,3204.3,3204.2,0.31219]
[1736934812644,3.2078,3204.6,3203.8,6.21120748]
[1736934813048,3.31236546,3204.5,3204.4,0.31217]
[1736934813256,0.4558,3204.7,3204.4,0.31217]
[1736934813457,0.4558,3204.7,3203.9,40.8]
[1736934813458,0.4983,3204.9,3203.9,40.8]
[1736934813755,3.31236546,3204.6,3203.9,40.8]
[1736934813954,3.31236546,3204.7,3204.0,1.352]
[1736934814250,0.4983,3204.9,3204.4,0.31217]
[1736934814455,3.53554989,3204.6,3204.4,0.31217]
[1736934814755,3.53554989,3204.7,3204.4,0.31217]
[1736934814953,0.81043,3204.9,3204.4,0.31217]
[1736934815150,0.4983,3204.9,3204.5,0.31216]
[1736934815353,3.41002303,3204.8,3204.0,1.352]
[1736934815657,0.81044,3204.9,3204.4,0.31217]
[1736934815854,0.81044,3204.9,3204.0,1.352]
[1736934816049,0.4983,3204.9,3204.5,0.31216]
[1736934816254,0.4983,3204.9,3204.1,0.9385]
[1736934816453,0.31214,3204.8,3204.4,0.31217]
[1736934816656,0.81043,3204.9,3204.4,0.31217]
[1736934817656,0.81043,3204.9,3204.5,0.31216]
[1736934818254,0.4983,3204.9,3204.2,3.2078]
[1736934818461,0.31214,3204.8,3204.4,0.31217]
[1736934819156,0.4983,3204.9,3204.2,3.2078]
[1736934819157,3.00340748,3204.7,3204.2,3.2078]
[1736934819457,5.67966152,3204.5,3203.4,5.67966152]
[1736934819764,3.2078,3204.1,3203.4,3.2078]
[1736934820060,0.31225,3203.7,3203.4,3.2078]
[1736934820358,0.31225,3203.7,3203.3,0.78038]
[1736934822161,0.4786,3204.0,3203.3,0.4681]
[1736934822359,3.2078,3203.7,3203.2,0.76048]
[1736934822660,3.52008,3203.3,3203.2,0.76048]
[1736934823654,3.2078,3203.3,3203.2,0.76048]
[1736934823859,3.2078,3203.3,3203.2,1.07277]
[1736934824158,3.4747689,3204.0,3203.2,0.76048]
[1736934824159,0.4786,3204.0,3203.2,0.76048]
[1736934824360,0.31224,3203.8,3203.4,0.31227]
[1736934824568,3.35699011,3203.9,3203.5,0.31226]
[1736934824763,0.31225,3203.7,3203.3,3.52008]
[1736934825059,0.31225,3203.7,3203.4,0.31227]
[1736934825456,3.35699011,3203.9,3203.6,0.31225]
[1736934825657,3.2078,3204.1,3203.6,2.9961689]
[1736934825858,3.2078,3204.1,3204.0,0.31221]
[1736934826363,3.2078,3204.1,3204.0,40.8]
[1736934827155,3.2078,3204.1,3204.0,41.11221]
[1736934827369,3.2078,3204.1,3204.0,40.8]
[1736934827764,6.95451881,3204.1,3203.7,0.31224]
[1736934827964,3.2078,3204.1,3203.9,0.31222]
[1736934828264,3.2078,3204.1,3204.0,41.11221]
[1736934828465,3.2078,3204.1,3204.0,40.8]
[1736934828670,6.78644373,3204.1,3204.0,40.8]
[1736934829667,0.31222,3204.0,3203.7,0.31224]
[1736934829869,6.47424373,3204.1,3203.3,3.7029]
[1736934830167,3.2078,3204.1,3203.4,42.152]
[1736934830555,3.52001,3204.1,3203.4,42.152]
[1736934830759,3.52001,3204.1,3203.8,0.31223]
[1736934831167,0.31223,3203.9,3203.6,0.31225]
[1736934831364,0.31223,3203.9,3203.4,42.152]
[1736934831560,3.2078,3204.1,3203.4,42.152]
[1736934831864,3.52001,3204.1,3203.8,0.31223]
[1736934832460,0.31222,3204.0,3203.8,0.31223]
[1736934832767,3.52001,3204.1,3203.8,0.31223]
[1736934833265,3.52001,3204.1,3203.9,0.31222]
[1736934833773,3.2078,3204.1,3203.9,0.31222]
[1736934834068,3.52001,3204.1,3203.8,0.31223]
[1736934834665,3.52001,3204.1,3203.4,42.152]
[1736934834871,3.2078,3204.1,3203.4,42.152]
[1736934835065,0.31222,3204.0,3203.8,0.31223]
[1736934835266,0.31224,3203.8,3203.5,0.31226]
[1736934835465,0.31223,3203.9,3203.6,0.31224]
[1736934835666,0.31223,3203.9,3203.4,40.8]
[1736934835964,3.52,3204.1,3203.9,0.31222]
[1736934836158,3.52,3204.1,3203.5,0.31226]
[1736934836159,3.2078,3204.1,3203.5,0.31226]
[1736934836362,3.2078,3204.1,3204.0,0.31221]
[1736934836670,3.2078,3204.1,3203.4,40.8]
[1736934836671,3.52001,3204.1,3203.9,0.31222]
[1736934837264,0.31221,3204.1,3203.9,0.31222]
[1736934837666,9.70748656,3204.0,3202.5,3.2078]
[1736934837867,0.31236,3202.6,3202.3,0.31237]
[1736934838068,0.31239,3202.2,3202.1,3.2078]
[1736934838270,0.31238,3202.4,3202.1,3.5202]
[1736934838573,0.4551,3202.5,3202.4,0.31237]
[1736934840173,0.4551,3202.5,3202.2,40.8]
[1736934840174,0.76746,3202.5,3202.2,41.11238]
[1736934840569,0.4551,3202.5,3202.2,40.8]
[1736934841066,0.4551,3202.5,3202.2,41.11239]
[1736934841067,0.76746,3202.5,3202.2,41.11239]
[1736934841775,0.76746,3202.5,3202.2,40.8]
[1736934842164,0.76746,3202.5,3202.2,41.11239]
[1736934842374,0.4551,3202.5,3202.2,40.8]
[1736934842571,0.31239,3202.2,3202.1,3.2078]
[1736934843272,0.77158,3202.3,3202.1,3.2078]
[1736934843575,3.5131817,3202.2,3202.0,0.31241]
[1736934843976,3.5131817,3202.2,3201.8,40.8]
[1736934844176,0.31242,3201.9,3201.5,0.31245]
[1736934844378,6.7209817,3202.2,3201.3,1.337]
[1736934844569,0.31241,3202.0,3201.7,0.31243]
[1736934844970,3.2078,3201.8,3201.2,3.2078]
[1736934845174,0.31248,3201.3,3200.4,0.77346]
[1736934845367,3.2078,3201.0,3200.4,0.4609]
[1736934845573,3.2078,3201.0,3200.7,0.31253]
[1736934845770,0.25179352,3200.9,3200.7,0.31253]
[1736934846974,0.25179352,3200.9,3200.8,3.52033]
[1736934847170,2.96013202,3201.7,3200.8,3.2078]
[1736934847370,0.31246,3201.5,3201.0,0.3125]
[1736934847569,3.43491715,3201.6,3200.8,3.2078]
[1736934847775,3.43491715,3201.4,3201.1,40.8]
[1736934847977,0.4854,3201.7,3201.6,0.31245]
[1736934848175,0.4854,3201.7,3201.2,0.4606]
[1736934848576,0.4854,3201.7,3201.5,0.31246]
[1736934848771,0.4854,3201.7,3201.6,0.31245]
[1736934849076,3.2078,3201.8,3201.7,0.31244]
[1736934850079,3.2078,3201.8,3201.6,0.31245]
[1736934850470,3.2078,3201.8,3201.7,0.31244]
[1736934850681,3.2078,3201.8,3201.7,41.11244]
[1736934851171,3.2078,3201.8,3201.7,40.8]
[1736934851372,3.2078,3201.8,3201.7,41.11244]
[1736934851975,3.2078,3201.8,3201.7,40.8]
[1736934852783,3.52023,3201.8,3201.7,40.8]
[1736934853078,3.2078,3201.8,3201.7,40.8]
[1736934853480,6.74723455,3201.8,3201.2,0.4606]
[1736934853673,6.74723455,3201.8,3201.0,3.2078]
[1736934853978,9.74798561,3201.8,3201.0,3.2078]
[1736934854177,3.2078,3201.4,3201.0,3.2078]
[1736934854479,0.4736,3201.3,3200.5,3.2078]
[1736934854679,0.31249,3201.2,3200.5,3.52035]
[1736934854881,0.31253,3200.9,3200.5,3.52035]
[1736934855081,0.31251,3201.0,3200.7,0.31253]
[1736934855384,0.31251,3201.0,3200.5,3.2078]
[1736934855582,0.31253,3200.8,3200.5,0.31255]
[1736934857077,3.40823927,3200.9,3200.4,40.8]
[1736934857386,3.40823927,3200.9,3200.7,0.31253]
[1736934857688,3.40823927,3200.9,3200.4,40.8]
[1736934857987,0.31254,3200.7,3200.4,40.8]
[1736934858383,0.31254,3200.7,3200.4,41.11256]
[1736934858578,3.40823927,3200.9,3200.4,40.8]
[1736934858885,0.31255,3200.6,3200.4,40.8]
[1736934859086,0.31253,3200.8,3200.5,0.31255]
[1736934859288,0.31255,3200.6,3200.4,40.8]
[1736934859589,3.4378002,3200.7,3200.4,40.8]
[1736934859778,0.31255,3200.6,3200.4,40.8]
[1736934860087,0.31253,3200.8,3200.5,0.31255]
[1736934860487,3.33248005,3200.7,3200.5,0.31255]
[1736934860681,3.33248005,3200.7,3200.4,40.8]
[1736934860982,3.33248005,3200.7,3200.5,0.31256]
[1736934861182,0.31252,3200.9,3200.6,0.31255]
[1736934861586,3.40564778,3200.9,3200.4,44.0078]
[1736934861781,3.2078,3201.0,3200.9,0.31252]
[1736934862587,0.78608,3201.3,3200.9,0.31252]
[1736934862788,0.31249,3201.2,3200.9,0.31251]
[1736934862984,3.2078,3201.0,3200.6,0.4834]
[1736934863290,0.31256,3200.5,3200.4,3.2078]
[1736934864282,0.31258,3200.3,3200.0,44.3204]
[1736934864489,0.4573,3200.4,3200.2,0.31258]
[1736934864892,3.3690568,3200.3,3200.2,0.31258]
[1736934865193,3.96305106,3200.9,3200.0,44.0078]
[1736934865483,3.37155092,3200.5,3200.4,0.31256]
[1736934865987,0.31254,3200.7,3200.4,0.31256]
[1736934866190,0.31255,3200.6,3200.3,0.31257]
[1736934866492,3.62938681,3200.6,3200.3,0.31257]
[1736934866683,0.31256,3200.5,3200.2,0.31258]
[1736934866989,3.31683681,3200.5,3200.4,0.31257]
[1736934867183,0.31254,3200.7,3200.4,0.31257]
[1736934867385,3.46915672,3200.6,3200.5,0.31255]
[1736934867788,3.46915672,3200.7,3200.6,0.31255]
[1736934868091,3.46915672,3200.7,3200.0,44.0078]
[1736934868092,3.36868532,3200.8,3200.0,44.0078]
[1736934868485,1.25942,3200.9,3200.0,44.0078]
[1736934868783,3.36868532,3200.8,3200.6,0.31254]
[1736934869392,3.68121532,3200.8,3200.6,0.31254]
[1736934869590,3.36868532,3200.8,3200.6,0.31254]
[1736934870093,3.81495316,3200.7,3199.3,3.2078]
[1736934870295,3.81495316,3200.7,3199.6,0.31264]
[1736934870296,2.78955316,3200.1,3199.6,0.31264]
[1736934870688,3.57508251,3200.0,3199.7,0.31262]
[1736934871185,3.57508251,3200.0,3199.6,0.31264]
[1736934871989,3.88768251,3200.0,3199.4,41.2566]
[1736934872191,3.88768251,3200.0,3199.6,0.31264]
[1736934872401,3.57508251,3200.0,3199.9,0.31261]
[1736934872590,3.57508251,3200.0,3199.8,3.2078]
[1736934872591,3.2078,3200.2,3199.8,5.68475316]
[1736934872892,2.93445316,3200.8,3199.8,5.68475316]
[1736934873089,2.93445316,3200.8,3200.2,3.2078]
[1736934873090,0.4575,3200.8,3200.2,3.2078]
[1736934873392,0.4575,3200.8,3199.7,1.33]
[1736934873393,2.47695316,3201.5,3200.6,3.2078]
[1736934873694,2.47695316,3200.9,3200.6,3.2078]
[1736934873895,3.2078,3200.7,3199.9,3.2078]
[1736934874090,0.31258,3200.3,3199.7,0.31263]
[1736934874292,0.31261,3200.0,3199.6,0.4556]
[1736934874491,5.7374026,3200.2,3199.8,0.31262]
[1736934874691,3.26044944,3199.9,3199.8,0.31262]
[1736934874894,3.2078,3200.3,3199.6,0.4556]
[1736934875084,6.0500026,3200.1,3199.6,0.31264]
[1736934875288,3.35939771,3200.2,3199.5,3.2078]
[1736934875489,6.52378008,3200.3,3199.8,0.31262]
[1736934875689,6.52378008,3200.3,3199.5,3.2078]
[1736934875690,3.35939771,3200.0,3199.9,0.31261]
[1736934875898,3.35939771,3200.2,3199.6,0.31264]
[1736934876106,3.2078,3200.3,3199.5,3.2078]
[1736934876397,3.26372314,3200.2,3199.8,0.31262]
[1736934876597,3.26372314,3200.2,3199.5,3.2078]
[1736934876598,3.26372314,3200.2,3200.0,0.31259]
[1736934876790,3.26372314,3200.2,3199.5,3.2078]
[1736934876988,3.26372314,3200.2,3199.9,0.31261]
[1736934877190,0.31257,3200.4,3199.5,3.2078]
[1736934877191,3.2078,3200.4,3199.5,3.2078]
[1736934877387,3.49890375,3200.3,3199.5,3.2078]
[1736934877593,3.2078,3200.4,3199.5,3.2078]
[1736934877797,0.31256,3200.5,3200.0,0.31259]
[1736934877999,3.49890375,3200.3,3199.5,3.2078]
[1736934878191,3.59650144,3200.5,3199.5,3.2078]
[1736934878391,3.77305008,3200.6,3199.9,3.2078]
[1736934878599,3.77305008,3200.6,3200.1,0.31259]
[1736934878794,3.59650144,3200.5,3200.2,0.31258]
[1736934879396,3.59650144,3200.5,3199.9,3.2078]
[1736934879603,3.59650144,3200.5,3200.0,0.4621]
[1736934879801,3.59650144,3200.5,3200.4,0.31257]
[1736934880999,3.2078,3201.4,3200.3,3.2078]
[1736934881206,3.52027,3201.4,3200.9,0.31251]
[1736934881497,3.31766984,3201.2,3200.9,0.31251]
[1736934881706,3.31766984,3201.3,3200.9,0.31251]
[1736934882004,3.31766984,3201.1,3200.9,0.31251]
[1736934882199,3.31766984,3201.3,3200.9,0.31251]
[1736934882396,3.2078,3201.4,3200.9,0.31251]
[1736934882703,3.2078,3201.4,3200.5,0.31256]
[1736934882704,0.31252,3200.9,3200.5,0.31256]
[1736934882908,0.4984,3200.8,3200.4,41.11256]
[1736934883096,0.31254,3200.7,3200.3,1.64357]
[1736934883297,4.56204418,3200.8,3200.3,1.331]
[1736934883503,6.61160889,3200.6,3200.2,0.31258]
[1736934883704,3.2078,3200.6,3200.2,0.31258]
[1736934884098,3.40380889,3200.5,3200.2,0.31258]
[1736934884406,3.40380889,3200.5,3200.0,0.4621]
[1736934884704,3.40380889,3200.5,3200.2,0.31258]
[1736934884905,0.31257,3200.4,3200.0,0.4621]
[1736934885404,3.51419006,3200.3,3200.0,0.7747]
[1736934885601,3.51419006,3200.3,3200.0,0.3126]
[1736934886701,3.82677006,3200.3,3199.5,3.2078]
[1736934887010,0.3126,3200.1,3199.7,0.31263]
[1736934887305,4.43444303,3200.0,3199.5,3.2078]
[1736934887502,4.43444303,3200.0,3199.9,0.31261]
[1736934888209,0.4639,3200.0,3199.9,0.31261]
[1736934888603,0.77756,3200.5,3199.6,0.31264]
[1736934888803,1.25966,3200.5,3200.1,0.31259]
[1736934889009,3.43583206,3200.4,3199.6,40.8]
[1736934889209,3.43583206,3200.4,3200.2,0.31258]
[1736934889611,3.74840206,3200.4,3200.1,0.31259]
[1736934889812,3.43583206,3200.4,3200.1,0.31259]
[1736934890112,3.43583206,3200.4,3200.3,0.31258]
[1736934890909,0.4821,3200.5,3200.4,0.31257]
[1736934892405,0.4821,3200.5,3199.9,1.4346]
[1736934892606,3.7958136,3200.5,3199.6,44.0078]
[1736934892804,0.3126,3200.1,3199.8,0.31262]
[1736934893111,0.31261,3200.0,3199.6,0.31264]
[1736934893613,3.2078,3200.2,3199.4,4.8935233]
[1736934893815,3.27162882,3199.9,3199.2,44.0078]
[1736934894005,3.2078,3200.2,3199.8,0.31262]
[1736934894006,3.27162882,3200.1,3199.8,0.31262]
[1736934894209,3.2078,3200.2,3199.8,0.31262]
[1736934894404,3.2078,3200.2,3199.7,0.31263]
[1736934894604,3.91988028,3200.1,3199.3,0.31267]
[1736934894804,3.91988028,3200.1,3199.2,44.0078]
[1736934895107,3.60728028,3200.1,3199.8,0.31262]
[1736934895310,3.91988028,3200.1,3199.8,0.31262]
[1736934895917,3.60728028,3200.1,3199.9,0.31261]
[1736934896415,3.60728028,3200.1,3199.3,0.78168]
[1736934896611,3.60728028,3200.1,3200.0,0.3126]
[1736934897914,0.4821,3200.5,3200.4,0.31257]
[1736934898214,3.83187828,3200.5,3200.4,0.31257]
[1736934900216,3.83187828,3200.5,3199.8,0.483]
[1736934900517,3.83187828,3200.5,3200.3,0.31257]
[1736934900713,3.83187828,3200.5,3199.8,0.483]
[1736934900910,3.83187828,3200.5,3200.4,0.31257]
[1736934901418,4.14443828,3200.5,3200.3,0.31257]
[1736934901618,3.83187828,3200.5,3199.8,0.483]
[1736934901922,0.4988,3200.4,3200.2,0.31258]
[1736934902113,3.2078,3200.3,3200.2,0.31258]
[1736934902310,6.48551524,3200.3,3200.2,0.31258]
[1736934902617,3.27771524,3200.3,3200.2,0.31258]
[1736934902818,3.2078,3200.7,3200.2,0.31258]
[1736934903123,3.27771524,3200.4,3200.3,0.77588]
[1736934903420,6.28111532,3200.6,3200.3,0.77588]
[1736934903421,0.4632,3200.6,3200.5,0.31256]
[1736934903726,3.2078,3201.1,3201.0,0.31251]
[1736934904019,6.58909791,3201.1,3201.0,0.31251]
[1736934904812,6.90159791,3201.1,3200.9,0.31251]
[1736934905118,0.31252,3201.0,3200.5,3.2078]
[1736934905318,0.31252,3201.0,3200.8,0.31253]
[1736934905520,3.51293881,3200.9,3200.8,0.31253]
[1736934905820,0.31254,3200.7,3200.4,0.31256]
[1736934906215,3.82548881,3200.6,3200.4,0.31256]
[1736934906416,0.4785,3200.5,3200.4,0.31256]
[1736934906922,4.06236171,3200.5,3200.4,0.31256]
[1736934907117,3.58386171,3200.5,3200.4,0.31256]
[1736934908822,6.38117749,3200.6,3200.1,0.31259]
[1736934909021,0.31259,3200.2,3200.0,3.2078]
[1736934909325,4.05494008,3200.1,3200.0,3.2078]
[1736934909519,4.36753008,3200.1,3200.0,3.2078]
[1736934909719,0.77029,3200.1,3200.0,3.2078]
[1736934910021,4.05494008,3200.1,3200.0,3.5204]
[1736934911621,4.05494008,3200.1,3199.5,3.52045]
[1736934911815,0.31265,3199.6,3199.4,0.31266]
[1736934912016,3.2078,3199.9,3199.4,0.31266]
[1736934912017,0.31264,3199.7,3199.4,0.31266]
[1736934912216,3.36392124,3199.5,3199.4,0.31266]
[1736934912722,3.43999498,3199.7,3199.5,0.31265]
[1736934913119,0.79202,3199.8,3199.6,0.31264]
[1736934913426,3.29757598,3199.7,3199.5,0.31264]
[1736934913622,3.29757598,3199.7,3199.6,0.31264]
[1736934914128,3.2078,3199.9,3199.8,0.31262]
[1736934914519,3.33390013,3199.9,3199.8,0.31262]
[1736934915028,3.33390013,3199.9,3199.5,3.2078]
[1736934915029,3.33390013,3200.0,3199.9,0.31261]
[1736934915226,0.4577,3200.1,3199.5,3.2078]
[1736934915426,3.6916558,3200.0,3199.7,0.31263]
[1736934916221,3.3790458,3200.0,3199.8,0.31262]
[1736934916427,3.6916458,3200.0,3199.7,0.31263]
[1736934916619,0.31261,3199.9,3199.7,0.31263]
[1736934917021,3.46572739,3199.8,3199.6,0.31264]
[1736934917319,3.46572739,3199.8,3199.7,0.31263]
[1736934917625,0.31261,3200.0,3199.7,0.31263]
[1736934917825,3.60057195,3199.9,3199.7,0.31263]
[1736934918223,3.91319195,3199.9,3199.7,0.31263]
[1736934918520,0.4577,3200.1,3199.5,3.2078]
[1736934918728,3.54533421,3200.0,3199.9,0.31261]
[1736934919028,0.4577,3200.1,3200.0,0.3126]
[1736934919231,0.4577,3200.1,3200.0,40.8]
[1736934919430,0.4577,3200.1,3200.0,41.1126]
[1736934920222,0.4577,3200.1,3200.0,0.3126]
[1736934920524,4.35898085,3200.1,3199.8,0.31262]
[1736934920721,3.2078,3199.9,3199.7,41.2794]
[1736934920929,3.2078,3199.9,3199.1,0.4648]
[1736934921223,0.31267,3199.4,3199.2,0.31268]
[1736934921530,3.2078,3199.5,3199.4,0.31266]
[1736934921732,3.42474512,3200.0,3199.4,6.21120008]
[1736934922024,3.2078,3200.0,3199.2,0.9603]
[1736934922228,6.63254512,3200.0,3199.2,0.4648]
[1736934922428,7.09724512,3200.0,3199.1,0.4659]